bitfinex/quotes_SOLUSD_20240809
["timestamp","ask_amount","ask_price","bid_price","bid_amount"]
[1723197961410,27.12,157.42,157.39,15.8832]
[1723197961612,27.12,157.43,157.42,6.3524]
[1723197961783,27.12,157.43,157.39,15.8832]
[1723197961991,27.12,157.42,157.4,6.3532]
[1723197962686,27.12,157.41,157.39,15.8832]
[1723197963086,1.58822655,157.49,157.39,15.8832]
[1723197963087,27.12,157.42,157.41,6.3528]
[1723197963304,27.12,157.43,157.41,6.3528]
[1723197963613,27.12,157.43,157.42,6.3524]
[1723197963799,27.12,157.45,157.44,6.3516]
[1723197964118,27.12,157.46,157.45,6.3511]
[1723197964305,27.12,157.46,157.43,15.879]
[1723197964306,27.12,157.47,157.46,6.3507]
[1723197965781,27.12,157.48,157.47,6.3503]
[1723197966603,27.12,157.49,157.48,22.2248]
[1723197966814,27.12,157.49,157.48,15.875]
[1723197966982,27.12,157.49,157.45,22.2286]
[1723197967314,27.12,157.46,157.45,15.8777]
[1723197967680,27.12,157.46,157.45,22.2289]
[1723197968807,27.12,157.46,157.42,15.8807]
[1723197969000,27.12,157.46,157.4,31.7644]
[1723197969190,27.12,157.47,157.44,15.8782]
[1723197969398,27.12,157.46,157.44,15.8782]
[1723197969917,27.12,157.45,157.43,6.3519]
[1723197970106,27.12,157.44,157.41,15.8818]
[1723197970413,27.12,157.43,157.42,6.3523]
[1723197970607,27.12,157.44,157.43,6.352]
[1723197971719,27.12,157.45,157.44,6.3512]
[1723197972215,27.12,157.45,157.43,15.8793]
[1723197972216,27.12,157.45,157.43,22.2313]
[1723197972518,27.12,157.44,157.43,15.8793]
[1723197974716,60.592,157.44,157.34,16.5313]
[1723197974895,27.12,157.4,157.39,6.3536]
[1723197975328,27.12,157.41,157.4,22.2362]
[1723197976004,27.12,157.41,157.4,15.883]
[1723197976203,27.12,157.41,157.4,22.2362]
[1723197976398,27.12,157.41,157.4,15.883]
[1723197976610,72.12,157.41,157.37,6.3541]
[1723197976814,27.12,157.38,157.37,6.3541]
[1723197977617,27.12,157.38,157.37,15.8853]
[1723197977912,27.12,157.38,157.37,22.2396]
[1723197978097,27.12,157.38,157.37,15.8853]
[1723197978422,72.12,157.38,157.28,22.4819]
[1723197978590,27.12,157.35,157.28,49.6019]
[1723197978795,27.12,157.36,157.35,6.3549]
[1723197979129,27.12,157.36,157.34,6.3556]
[1723197979336,27.12,157.35,157.34,6.3556]
[1723197979638,27.12,157.36,157.35,6.3552]
[1723197979824,27.12,157.38,157.35,15.8873]
[1723197980530,27.12,157.38,157.37,6.3541]
[1723197980710,27.12,157.4,157.37,15.8854]
[1723197981033,21.6246,157.43,157.39,6.3536]
[1723197981241,15.2725,157.43,157.4,6.3529]
[1723197981422,6.0496,157.46,157.39,15.8833]
[1723197981423,6.0496,157.46,157.41,6.3528]
[1723197981826,6.0496,157.46,157.4,6.3532]
[1723197982031,27.12,157.41,157.4,6.3532]
[1723197982330,27.12,157.41,157.39,22.2369]
[1723197982630,27.12,157.4,157.39,15.8833]
[1723197982845,27.12,157.4,157.39,22.2369]
[1723197983424,27.12,157.41,157.4,6.3532]
[1723197983607,27.12,157.42,157.41,6.3528]
[1723197983811,27.12,157.43,157.42,6.3521]
[1723197984119,27.12,157.45,157.43,15.8793]
[1723197984610,27.12,157.45,157.43,22.2312]
[1723197985835,27.12,157.45,157.44,6.3516]
[1723197986027,27.12,157.46,157.43,15.8793]
[1723197986215,27.12,157.44,157.43,22.2312]
[1723197986812,27.12,157.46,157.45,6.3508]
[1723197987330,27.12,157.46,157.43,15.8793]
[1723197987531,27.12,157.46,157.43,22.231]
[1723197987722,27.12,157.46,157.44,6.3516]
[1723197989143,27.12,157.46,157.45,6.3512]
[1723197989451,27.12,157.46,157.4,15.8827]
[1723197989620,27.12,157.42,157.4,15.8827]
[1723197990135,27.12,157.42,157.41,6.3524]
[1723197990731,27.12,157.42,157.4,15.8827]
[1723197990936,27.12,157.42,157.39,6.3532]
[1723197991235,27.12,157.4,157.39,6.3532]
[1723197992838,27.12,157.4,157.38,6.3538]
[1723197993433,27.12,157.4,157.39,22.2377]
[1723197993933,27.12,157.41,157.4,6.3532]
[1723197994943,27.12,157.43,157.42,22.2334]
[1723197995659,27.12,157.43,157.42,15.881]
[1723197995833,27.12,157.43,157.41,6.3525]
[1723197997156,27.12,157.43,157.42,6.3524]
[1723197997355,27.12,157.43,157.39,15.8837]
[1723197997526,27.12,157.4,157.39,22.2373]
[1723197998663,27.12,157.4,157.36,15.8867]
[1723197998845,27.12,157.38,157.37,6.3544]
[1723197999925,27.12,157.38,157.36,15.8867]
[1723198000130,27.12,157.37,157.33,15.89]
[1723198000351,33.4756,157.34,157.28,6.358]
[1723198000533,27.12,157.3,157.29,6.3576]
[1723198000731,27.12,157.31,157.3,6.3572]
[1723198001032,27.12,157.32,157.31,6.3568]
[1723198001332,27.12,157.32,157.3,22.2495]
[1723198001540,27.12,157.31,157.3,22.2495]
[1723198002162,27.12,157.32,157.31,6.3565]
[1723198002745,72.12,157.32,157.31,6.3565]
[1723198003850,27.12,157.33,157.32,6.356]
[1723198004052,27.12,157.34,157.33,6.356]
[1723198004446,27.12,157.34,157.32,22.2466]
[1723198004647,27.12,157.33,157.32,22.2466]
[1723198004864,27.12,157.33,157.32,15.8902]
[1723198005244,27.12,157.33,157.32,22.2466]
[1723198007969,27.12,157.34,157.33,6.3559]
[1723198012268,27.12,157.38,157.37,6.3544]
[1723198012652,27.12,157.38,157.37,22.2403]
[1723198013375,27.12,157.39,157.38,6.3537]
[1723198015871,27.12,157.39,157.34,15.8888]
[1723198016078,27.12,157.36,157.34,15.8888]
[1723198016259,27.12,157.38,157.37,22.2402]
[1723198016684,27.12,157.39,157.38,6.3538]
[1723198017185,27.12,157.39,157.34,15.8887]
[1723198017398,27.12,157.36,157.35,6.3551]
[1723198017694,27.12,157.36,157.35,6.3552]
[1723198017994,51.5113,157.43,157.36,6.3548]
[1723198017995,27.12,157.37,157.36,6.3548]
[1723198018398,27.12,157.37,157.35,6.3551]
[1723198018571,27.12,157.36,157.35,6.3551]
[1723198020094,27.12,157.37,157.36,6.3548]
[1723198020604,27.12,157.38,157.37,6.3543]
[1723198021304,27.12,157.39,157.38,6.3536]
[1723198021905,27.12,157.4,157.39,6.3534]
[1723198022202,27.12,157.41,157.4,6.3528]
[1723198022372,27.12,157.41,157.38,15.8845]
[1723198022568,27.12,157.39,157.35,15.8877]
[1723198022771,27.12,157.36,157.35,22.2428]
[1723198023780,27.12,157.37,157.36,6.3548]
[1723198023980,27.12,157.38,157.37,6.354]
[1723198025700,27.12,157.38,157.36,6.3548]
[1723198025897,27.12,157.37,157.36,6.3548]
[1723198026204,27.12,157.38,157.37,6.3544]
[1723198027702,27.12,157.38,157.36,6.3547]
[1723198027932,27.12,157.37,157.36,6.3547]
[1723198028070,27.12,157.39,157.37,15.8851]
[1723198028274,27.12,157.39,157.38,6.354]
[1723198028601,27.12,157.39,157.36,6.3547]
[1723198028785,27.12,157.37,157.36,6.3547]
[1723198030598,27.12,157.37,157.34,15.8887]
[1723198030599,27.12,157.37,157.35,6.3551]
[1723198030808,27.12,157.36,157.35,6.3551]
[1723198032422,27.12,157.37,157.36,6.3544]
[1723198032716,42.7595,157.44,157.37,6.3543]
[1723198032717,27.12,157.38,157.37,6.3543]
[1723198034213,27.12,157.4,157.39,6.3533]
[1723198034419,42.7595,157.44,157.38,15.8851]
[1723198034420,27.12,157.41,157.38,15.8851]
[1723198035102,27.12,157.41,157.4,6.353]
[1723198035305,27.12,157.41,157.32,31.7817]
[1723198035306,33.4732,157.41,157.35,6.3548]
[1723198035510,33.4732,157.41,157.32,31.7817]
[1723198035511,27.12,157.38,157.32,31.7817]
[1723198035707,27.12,157.39,157.38,6.3539]
[1723198036091,27.12,157.39,157.37,6.3543]
[1723198036287,27.12,157.38,157.37,6.3543]
[1723198036604,27.12,157.38,157.36,15.8865]
[1723198036916,27.12,157.37,157.36,22.2412]
[1723198037517,27.12,157.37,157.33,22.2454]
[1723198037706,27.12,157.34,157.33,22.2456]
[1723198038017,27.12,157.35,157.33,15.8896]
[1723198038589,27.12,157.35,157.34,6.3554]
[1723198040517,6.6483,157.4,157.36,6.3546]
[1723198040518,27.12,157.37,157.36,6.3546]
[1723198042020,27.12,157.38,157.37,6.3544]
[1723198042320,290.9383,157.54,157.37,6.3544]
[1723198042321,27.12,157.4,157.37,15.8856]
[1723198042510,27.12,157.4,157.39,6.3536]
[1723198043805,27.12,157.4,157.38,6.3539]
[1723198044628,27.12,157.39,157.38,6.3539]
[1723198044801,72.12,157.39,157.35,6.3552]
[1723198045002,27.12,157.37,157.35,6.3552]
[1723198045621,27.12,157.37,157.36,6.3548]
[1723198046813,72.12,157.37,157.34,15.8889]
[1723198047131,27.12,157.35,157.34,15.8889]
[1723198047504,27.12,157.35,157.34,22.2445]
[1723198048228,27.12,157.35,157.31,15.8917]
[1723198048419,27.12,157.33,157.32,6.3563]
[1723198048627,27.12,157.34,157.33,6.356]
[1723198049121,27.12,157.35,157.34,6.3554]
[1723198049326,15.8804,157.43,157.35,6.3548]
[1723198049327,27.12,157.36,157.35,6.3548]
[1723198050405,27.12,157.38,157.37,6.3542]
[1723198051607,27.12,157.38,157.32,15.8907]
[1723198051810,27.12,157.35,157.32,22.247]
[1723198052130,27.12,157.34,157.33,6.356]
[1723198052307,27.12,157.36,157.32,15.8907]
[1723198052506,27.12,157.36,157.35,6.3552]
[1723198052902,27.12,157.37,157.36,6.3548]
[1723198053129,15.8793,157.41,157.36,15.8863]
[1723198053130,27.12,157.39,157.36,15.8863]
[1723198053430,27.12,157.4,157.39,6.3535]
[1723198053811,27.12,157.41,157.4,6.3531]
[1723198054005,27.12,157.43,157.41,6.3528]
[1723198054241,27.12,157.43,157.36,31.7729]
[1723198054242,27.12,157.43,157.42,6.3524]
[1723198054425,27.12,157.44,157.43,6.352]
[1723198054822,27.12,157.45,157.43,6.352]
[1723198055145,27.12,157.44,157.43,6.352]
[1723198055537,22.7694,157.49,157.42,15.8803]
[1723198055538,16.4198,157.49,157.42,15.8803]
[1723198055844,27.12,157.47,157.45,6.3512]
[1723198056021,27.12,157.46,157.42,22.2323]
[1723198056219,33.7705,157.52,157.42,15.8803]
[1723198056220,27.12,157.43,157.42,15.8803]
[1723198057250,27.12,157.44,157.43,6.352]
[1723198058132,27.12,157.44,157.42,15.8803]
[1723198058336,27.12,157.43,157.42,15.8803]
[1723198059745,27.12,157.44,157.42,22.2326]
[1723198059934,27.12,157.45,157.43,6.352]
[1723198060423,27.12,157.46,157.44,6.3516]
[1723198060624,27.12,157.46,157.43,6.3519]
[1723198061921,27.12,157.46,157.44,6.3514]
[1723198062551,27.12,157.46,157.43,6.3519]
[1723198062730,27.12,157.45,157.42,22.2326]
[1723198062928,27.12,157.43,157.39,15.8839]
[1723198063348,27.12,157.4,157.35,15.8874]
[1723198063546,27.12,157.39,157.36,6.3545]
[1723198063848,27.12,157.39,157.37,6.3542]
[1723198064352,27.12,157.4,157.39,6.3536]
[1723198064725,27.12,157.4,157.37,15.8853]
[1723198065221,6.3499,157.49,157.44,6.3515]
[1723198065545,27.12,157.45,157.41,15.882]
[1723198065853,27.12,157.44,157.41,15.882]
[1723198067025,17.38558376,157.51,157.41,15.882]
[1723198067026,27.12,157.43,157.41,15.882]
[1723198067240,27.12,157.42,157.41,15.882]
[1723198068223,27.12,157.42,157.41,22.2348]
[1723198068422,27.12,157.43,157.41,15.882]
[1723198068655,27.12,157.44,157.43,6.352]
[1723198068833,27.12,157.44,157.42,6.3523]
[1723198070753,27.12,157.43,157.42,6.3523]
[1723198071545,27.12,157.44,157.43,6.352]
[1723198071855,27.12,157.44,157.42,6.3523]
[1723198072430,27.12,157.43,157.41,22.2347]
[1723198072629,33.25760813,157.51,157.36,58.893]
[1723198072630,27.12,157.42,157.4,6.3532]
[1723198072854,27.12,157.42,157.38,15.8848]
[1723198072855,27.12,157.41,157.38,15.8848]
[1723198073056,27.12,157.39,157.36,6.3547]
[1723198073233,27.12,157.37,157.32,47.6713]
[1723198073633,27.12,157.37,157.35,6.3552]
[1723198074654,27.12,157.37,157.36,6.3548]
[1723198074859,27.12,157.38,157.36,6.3548]
[1723198076936,27.12,157.38,157.37,6.3544]
[1723198077136,27.12,157.4,157.39,6.3536]
[1723198077660,27.12,157.4,157.38,6.3539]
[1723198078168,27.12,157.41,157.39,6.3536]
[1723198078343,27.12,157.4,157.37,15.8861]
[1723198078658,27.12,157.39,157.37,22.2404]
[1723198079568,27.12,157.39,157.37,15.8861]
[1723198079942,27.12,157.39,157.37,22.2405]
[1723198080765,27.12,157.4,157.37,22.2405]
[1723198081167,27.12,157.39,157.37,15.8861]
[1723198081346,27.12,157.39,157.36,6.3547]
[1723198081548,6.3532,157.4,157.36,15.8865]
[1723198081549,27.12,157.4,157.36,15.8865]
[1723198081875,45.0,157.43,157.38,15.8844]
[1723198082168,27.12,157.43,157.41,6.3528]
[1723198082675,27.12,157.43,157.32,31.7805]
[1723198082676,27.12,157.42,157.35,6.3552]
[1723198082971,27.12,157.38,157.35,6.3552]
[1723198083165,27.12,157.37,157.34,15.8887]
[1723198083342,27.12,157.37,157.34,22.244]
[1723198083769,27.12,157.38,157.35,6.3552]
[1723198085048,28.70864034,157.37,157.34,15.8887]
[1723198085256,27.12,157.37,157.35,6.3552]
[1723198085877,27.12,157.38,157.36,6.3548]
[1723198086263,21.3544,157.41,157.34,22.2441]
[1723198086264,27.12,157.37,157.34,22.2441]
[1723198087056,27.12,157.37,157.35,6.3552]
[1723198087253,27.12,157.37,157.34,22.2442]
[1723198087449,27.12,157.37,157.35,6.3552]
[1723198087763,18.63,157.36,157.34,15.8887]
[1723198087969,18.63,157.36,157.35,6.3552]
[1723198089266,18.63,157.36,157.34,22.2442]
[1723198089472,18.63,157.35,157.34,22.2442]
[1723198091886,0.63499166,157.35,157.34,22.2442]
[1723198092063,21.3546,157.41,157.35,6.3549]
[1723198092265,18.63,157.36,157.35,6.3549]
[1723198092702,15.8769,157.47,157.36,15.8865]
[1723198092869,18.63,157.37,157.36,15.8865]
[1723198093672,18.63,157.37,157.36,22.2413]
[1723198094266,18.63,157.37,157.34,6.3553]
[1723198094467,18.63,157.35,157.34,6.3553]
[1723198094688,18.63,157.35,157.31,6.3565]
[1723198094886,18.63,157.32,157.31,6.3565]
[1723198095183,18.63,157.33,157.32,6.3563]
[1723198095773,27.18,157.34,157.32,6.3563]
[1723198095971,27.18,157.33,157.32,6.3563]
[1723198096695,27.18,157.33,157.31,6.3567]
[1723198097694,27.18,157.32,157.3,22.2499]
[1723198098002,27.18,157.32,157.31,6.3568]
[1723198099715,27.18,157.33,157.32,6.3564]
[1723198101104,27.18,157.33,157.31,6.3567]
[1723198101297,27.18,157.33,157.3,22.25]
[1723198101471,27.18,157.31,157.29,6.3576]
[1723198101676,27.18,157.31,157.26,21.6763]
[1723198101677,27.18,157.3,157.27,22.2541]
[1723198101876,27.18,157.3,157.28,6.358]
[1723198102687,27.18,157.29,157.27,15.896]
[1723198103099,27.18,157.3,157.27,15.896]
[1723198103279,27.18,157.29,157.28,6.358]
[1723198103901,45.0,157.35,157.29,6.3576]
[1723198103902,27.18,157.3,157.29,6.3576]
[1723198104393,27.18,157.3,157.28,6.358]
[1723198105607,27.18,157.3,157.29,6.3576]
[1723198105981,6.3557,157.34,157.29,6.3576]
[1723198106307,27.18,157.31,157.3,6.3569]
[1723198106509,27.18,157.33,157.32,6.3561]
[1723198106679,27.18,157.34,157.33,6.356]
[1723198107097,27.18,157.34,157.32,6.3563]
[1723198107275,27.18,157.33,157.31,15.8915]
[1723198108299,27.18,157.33,157.32,6.3564]
[1723198108478,27.18,157.33,157.28,31.7897]
[1723198108479,33.5361,157.33,157.24,6.54741919]
[1723198108678,27.18,157.29,157.22,27.18]
[1723198109181,27.18,157.29,157.27,15.8956]
[1723198109389,27.18,157.28,157.24,6.3593]
[1723198109595,27.18,157.28,157.25,6.3592]
[1723198110307,27.18,157.28,157.24,6.3596]
[1723198110605,27.18,157.28,157.25,6.3592]
[1723198111196,27.18,157.29,157.25,15.8975]
[1723198111399,27.18,157.29,157.27,6.3581]
[1723198111705,6.3565,157.32,157.27,6.3581]
[1723198111706,27.18,157.3,157.27,6.3581]
[1723198112286,27.18,157.29,157.27,6.3581]
[1723198112488,27.18,157.28,157.26,6.3588]
[1723198112686,27.18,157.28,157.25,15.8975]
[1723198112687,27.18,157.28,157.25,22.2567]
[1723198112909,17.47779138,157.35,157.25,15.8975]
[1723198112910,27.18,157.27,157.25,15.8975]
[1723198113282,27.18,157.27,157.26,6.3588]
[1723198113482,27.18,157.27,157.25,15.8975]
[1723198113687,27.18,157.29,157.25,15.8975]
[1723198113908,27.18,157.3,157.27,22.2534]
[1723198114105,27.18,157.29,157.27,22.2534]
[1723198114413,27.18,157.28,157.27,15.8953]
[1723198115315,27.18,157.28,157.24,15.8991]
[1723198115690,27.18,157.28,157.21,54.33]
[1723198115691,27.18,157.28,157.26,15.8966]
[1723198116510,27.18,157.27,157.23,15.8999]
[1723198116687,27.18,157.27,157.25,6.3592]
[1723198116887,27.18,157.27,157.26,6.3588]
[1723198117501,27.18,157.27,157.25,6.3592]
[1723198118483,27.18,157.28,157.26,6.3588]
[1723198118791,27.18,157.28,157.25,22.2568]
[1723198119203,27.18,157.27,157.26,6.3588]
[1723198119399,27.18,157.28,157.27,6.3583]
[1723198121004,27.18,157.3,157.29,6.3575]
[1723198121411,27.18,157.3,157.28,6.358]
[1723198121607,27.18,157.3,157.27,15.8955]
[1723198121608,27.18,157.29,157.27,22.2539]
[1723198121910,27.18,157.29,157.28,6.358]
[1723198122815,27.18,157.3,157.29,6.3574]
[1723198123820,18.65,157.3,157.28,6.3579]
[1723198123991,18.65,157.29,157.28,6.3579]
[1723198125614,18.65,157.29,157.28,15.8952]
[1723198125815,16.5136,157.36,157.28,15.8952]
[1723198126202,18.10294423,157.36,157.27,6.3584]
[1723198126401,16.5136,157.36,157.27,6.3584]
[1723198126596,18.65,157.28,157.27,6.3584]
[1723198127418,93.25,157.28,157.25,22.2569]
[1723198127630,18.65,157.26,157.22,15.901]
[1723198127931,18.65,157.26,157.25,6.3593]
[1723198131307,18.65,157.26,157.21,40.683]
[1723198131523,18.65,157.25,157.21,40.683]
[1723198132423,18.65,157.26,157.21,40.683]
[1723198132609,18.65,157.27,157.23,18.65]
[1723198132809,92.7031986,157.36,157.23,18.65]
[1723198132810,18.65,157.28,157.23,18.65]
[1723198133125,18.65,157.27,157.23,18.65]
[1723198133326,18.65,157.27,157.22,18.65]
[1723198133520,18.65,157.27,157.23,45.0]
[1723198133710,18.65,157.26,157.21,47.21547455]
[1723198133912,18.65,157.26,157.22,65.0]
[1723198134907,18.65,157.26,157.22,83.65]
[1723198135107,18.65,157.26,157.23,1.27163919]
[1723198135308,18.65,157.26,157.22,83.65]
[1723198135928,18.65,157.26,157.23,1.27163945]
[1723198137003,18.65,157.27,157.23,1.27163945]
[1723198137216,18.65,157.27,157.24,1.27159937]
[1723198137410,91.1136,157.36,157.23,18.65]
[1723198137615,18.65,157.27,157.23,18.65]
[1723198137817,45.0,157.35,157.22,65.0]
[1723198138011,18.65,157.25,157.22,65.0]
[1723198138922,18.65,157.25,157.22,20.0]
[1723198139332,18.65,157.26,157.22,20.0]
[1723198139713,18.65,157.26,157.23,1.27168068]
[1723198140351,18.65,157.26,157.22,38.65]
[1723198141822,18.65,157.28,157.24,18.65]
[1723198142215,18.65,157.29,157.25,19.92150778]
[1723198142525,18.65,157.28,157.25,1.27150778]
[1723198142924,18.65,157.28,157.24,18.65]
[1723198143245,16.5136,157.36,157.25,19.92149566]
[1723198143538,18.65,157.31,157.27,18.65]
[1723198143743,18.65,157.31,157.28,45.0]
[1723198144036,18.65,157.3,157.26,18.65]
[1723198144232,18.65,157.3,157.27,20.0]
[1723198145238,91.1136,157.36,157.27,38.65]
[1723198145239,18.65,157.31,157.27,38.65]
[1723198145534,18.65,157.3,157.27,20.0]
[1723198146240,18.65,157.31,157.27,20.0]
[1723198146628,18.65,157.31,157.27,38.65]
[1723198147438,18.65,157.33,157.29,18.65]
[1723198147639,16.0838,157.4,157.29,18.65]
[1723198147819,18.65,157.33,157.29,18.65]
[1723198148151,18.65,157.33,157.28,33.7918]
[1723198148451,18.65,157.33,157.29,45.0]
[1723198148814,18.65,157.33,157.29,63.65]
[1723198149237,18.65,157.33,157.29,45.0]
[1723198149445,18.65,157.32,157.28,15.1418]
[1723198150017,18.65,157.3,157.27,20.0]
[1723198150217,18.65,157.3,157.26,20.0]
[1723198150433,18.65,157.32,157.27,18.65]
[1723198150738,18.65,157.31,157.28,20.0]
[1723198152022,74.6,157.36,157.28,38.65]
[1723198152241,18.65,157.32,157.29,45.0]
[1723198152541,18.65,157.32,157.28,38.65]
[1723198152929,18.65,157.31,157.28,20.0]
[1723198153641,18.65,157.32,157.28,38.65]
[1723198154633,18.65,157.33,157.29,18.65]
[1723198155926,18.65,157.34,157.3,18.65]
[1723198156145,18.65,157.35,157.3,18.65]
[1723198156324,18.65,157.35,157.3,19.92103222]
[1723198157422,18.65,157.34,157.3,18.65]
[1723198158746,18.65,157.34,157.29,18.65]
[1723198159051,18.65,157.33,157.29,18.65]
[1723198159430,18.65,157.31,157.28,20.0]
[1723198159827,18.65,157.3,157.28,20.0]
[1723198160044,18.65,157.29,157.27,20.0]
[1723198160353,18.65,157.29,157.25,18.65]
[1723198160850,18.65,157.3,157.25,18.65]
[1723198161835,18.65,157.3,157.26,18.65]
[1723198162826,18.65,157.3,157.25,18.65]
[1723198164138,18.65,157.28,157.23,12.91678287]
[1723198164440,18.65,157.29,157.25,18.65]
[1723198164646,18.65,157.3,157.26,18.65]
[1723198166240,18.65,157.3,157.25,18.65]
[1723198166448,18.65,157.29,157.25,18.65]
[1723198167767,18.65,157.29,157.24,18.65]
[1723198168354,18.65,157.29,157.25,18.65]
[1723198169054,18.65,157.3,157.25,18.65]
[1723198170142,18.65,157.3,157.26,18.65]
[1723198171569,18.65,157.3,157.23,6.2816]
[1723198171743,18.65,157.3,157.25,18.65]
[1723198172564,18.65,157.29,157.25,18.65]
[1723198174868,18.65,157.3,157.26,18.65]
[1723198176141,18.65,157.29,157.23,6.2816]
[1723198176373,18.65,157.29,157.25,18.65]
[1723198176545,15.0798,157.34,157.23,7.55307724]
[1723198176860,15.0798,157.34,157.24,20.0]
[1723198177752,18.65,157.3,157.26,18.65]
[1723198179044,18.65,157.3,157.25,18.65]
[1723198181666,18.65,157.3,157.29,6.3576]
[1723198188774,18.65,157.3,157.28,6.3579]
[1723198190888,18.65,157.3,157.29,6.3576]
[1723198195861,18.65,157.3,157.28,6.358]
[1723198196085,18.65,157.29,157.28,6.358]
[1723198196371,18.65,157.3,157.28,6.358]
[1723198196578,18.65,157.29,157.28,6.358]
[1723198196965,18.65,157.3,157.28,6.358]
[1723198197396,6.3565,157.32,157.28,6.358]
[1723198197576,18.65,157.32,157.31,6.3568]
[1723198197774,18.65,157.33,157.32,6.3561]
[1723198198089,18.65,157.34,157.33,6.3559]
[1723198199772,18.65,157.35,157.34,6.3555]
[1723198199974,18.65,157.36,157.35,6.3552]
[1723198200290,18.65,157.37,157.36,6.3548]
[1723198200696,18.65,157.37,157.32,15.8908]
[1723198200906,18.65,157.33,157.29,6.3575]
[1723198201190,16.1809,157.35,157.27,18.65]
[1723198201367,22.5362,157.35,157.3,15.8924]
[1723198201569,16.1809,157.35,157.3,15.8924]
[1723198201873,16.1809,157.35,157.32,6.3563]
[1723198202590,16.1809,157.35,157.33,6.356]
[1723198202887,6.3543,157.38,157.33,6.356]
[1723198203270,6.3545,157.37,157.33,6.356]
[1723198203673,18.65,157.34,157.33,6.356]
[1723198204090,18.65,157.34,157.32,22.2468]
[1723198204401,18.65,157.33,157.32,15.8905]
[1723198205294,18.65,157.33,157.32,22.2469]
[1723198206199,18.65,157.33,157.31,6.3568]
[1723198206496,18.65,157.32,157.31,6.3568]
[1723198206891,18.65,157.32,157.3,6.3572]
[1723198207198,18.65,157.31,157.3,6.3572]
[1723198207806,18.65,157.33,157.29,15.8936]
[1723198208110,18.65,157.33,157.32,15.891]
[1723198208399,18.65,157.33,157.32,22.2474]
[1723198211405,18.65,157.34,157.33,6.356]
[1723198214500,18.65,157.34,157.32,22.2474]
[1723198214692,18.65,157.33,157.3,6.3572]
[1723198214893,18.65,157.31,157.3,6.3572]
[1723198215205,18.65,157.31,157.29,22.2517]
[1723198215510,18.65,157.3,157.29,22.2517]
[1723198216398,18.65,157.31,157.3,6.3572]
[1723198217895,18.65,157.32,157.3,6.3572]
[1723198218208,18.65,157.32,157.31,6.3568]
[1723198219075,18.65,157.32,157.27,6.3583]